fUST/lending_fUST_20241029
["ID","MTS","AMOUNT","RATE_DAILY","PERIOD"]
[340962012,1730161845934,-500.0,0.00024931,4]
[340962013,1730161845944,-1614.19,0.00024931,4]
[340962014,1730161845954,-500.0,0.00024931,4]
[340962015,1730161845963,-500.0,0.00024931,4]
[340962016,1730161845973,-500.0,0.00024931,4]
[340962017,1730161845983,-500.0,0.00024931,4]
[340962018,1730161845992,-541.09,0.00024931,4]
[340962019,1730161846002,-500.0,0.00024931,4]
[340962020,1730161846012,-500.0,0.00024931,4]
[340962021,1730161846021,-500.0,0.00024931,4]
[340962022,1730161846033,-500.0,0.00024931,4]
[340962023,1730161846043,-500.0,0.00024931,4]
[340962024,1730161846052,-500.0,0.00024931,4]
[340962025,1730161846062,-151.0,0.00024931,7]
[340962026,1730161846072,-595.0,0.00024932,2]
[340962027,1730161846082,-3424.30000099,0.0002499,2]
[340962028,1730161846091,-151.0,0.0002499,7]
[340962029,1730161846100,-151.0,0.0002499,7]
[340962030,1730161846109,-595.0,0.00025,2]
[340962031,1730161846119,-1037.40977049,0.00025,2]
[340962033,1730161846128,-37579.52287002,0.00025,2]
[340962035,1730161846137,-7485.91463838,0.00025,2]
[340962037,1730161846148,-202.85958288,0.00025,2]
[340962038,1730161846157,-14877.57454102,0.00025,2]
[340962044,1730161846874,-461.34111712,0.00024623,2]
[340962047,1730162207018,2019.06147108,0.00035738,120]
[340962048,1730162284931,166.352063,0.00013973,2]
[340962054,1730162413879,260.0,0.000201,2]
[340962055,1730162446064,262.91783312,0.000201,2]
[340962060,1730162534172,1935.0,0.00035657,50]
[340962065,1730162828149,-173.166614,0.0002266,2]
[340962066,1730162828169,-170.335706,0.00023192,2]
[340962067,1730162828190,-222.3483683,0.00023204,2]
[340962068,1730162828210,-79.52664678,0.00023445,2]
[340962069,1730162845126,-273.0422629,0.00023157,2]
[340962117,1730163031926,-95.99380126,0.00022902,2]
[340962162,1730163042935,-143.88357574,0.00022902,2]
[340962163,1730163042944,-239.877377,0.00022965,2]
[340962164,1730163042953,-239.877377,0.00023027,2]
[340962166,1730163042963,-124.73443673,0.00023056,2]
[340962173,1730163046114,-89.7740544,0.00023056,2]
[340962174,1730163046124,-239.877377,0.0002309,2]
[340962175,1730163046134,-206.207229,0.00023149,2]
[340962176,1730163046144,-239.877377,0.00023153,2]
[340962177,1730163046154,-0.81683113,0.00023156,2]
[340962178,1730163077383,5159.74582769,0.0003566,30]
[340962179,1730163138278,166.352063,0.00013973,2]
[340962180,1730163138883,1000.0,0.0003566,30]
[340962181,1730163159754,1000.0,0.0003566,30]
[340962182,1730163175258,1000.0,0.0003566,30]
[340962183,1730163185256,1000.0,0.0003566,30]
[340962184,1730163275850,1000.0,0.0003566,30]
[340962185,1730163284009,5000.0,0.0003566,30]
[340962186,1730163290096,2000.0,0.0003566,30]
[340962187,1730163298143,2000.0,0.0003566,30]
[340962188,1730163305672,2000.0,0.0003566,30]
[340962189,1730163312862,3000.0,0.0003566,30]
[340962190,1730163319451,3000.0,0.0003566,30]
[340962191,1730163327454,3000.0,0.0003566,30]
[340962192,1730163390227,1500.0,0.0003566,30]
[340962193,1730163398537,1500.0,0.0003566,30]
[340962194,1730163407039,1500.0,0.0003566,30]
[340962195,1730163415299,1500.0,0.0003566,30]
[340962196,1730163424327,2500.0,0.0003566,30]
[340962197,1730163679406,170.0061544,0.00013973,2]
[340962198,1730164038119,-167.0,0.00022,2]
[340962199,1730164038140,-114.06467928,0.0002219,2]
[340962200,1730164046134,-49.91986072,0.0002219,2]
[340962201,1730164046155,-300.0,0.00022249,2]
[340962202,1730164046176,-300.0,0.00022249,2]
[340962203,1730164046197,-308.09459291,0.0002225,2]
[340962204,1730164052111,-494.80706642,0.0002225,2]
[340962205,1730164148082,-300.0,0.00022249,2]
[340962206,1730164148102,-300.0,0.00022249,2]
[340962207,1730164148123,-4019.72145771,0.0002225,2]
[340962208,1730164152109,-19866.03511157,0.0002225,2]
[340962209,1730164216226,166.352063,0.00013973,2]
[340962249,1730164238035,-211.34177139,0.0002225,2]
[340962250,1730164238045,-181.2510577,0.00022936,2]
[340962251,1730164238054,-587.0144619,0.00022984,2]
[340962252,1730164238063,-776.55286853,0.00023052,2]
[340962253,1730164238072,-206.2072295,0.00023092,2]
[340962254,1730164238081,-195.211363,0.00023211,2]
[340962255,1730164238090,-195.211363,0.00023274,2]
[340962256,1730164238100,-2365.49303501,0.00023287,2]
[340962257,1730164238110,-306.0,0.000233,2]
[340962258,1730164238120,-195.211363,0.00023338,2]
[340962259,1730164238129,-195.211363,0.00023401,2]
[340962260,1730164238138,-195.211363,0.00023465,2]
[340962261,1730164238147,-195.211363,0.00023529,2]
[340962262,1730164238156,-195.211363,0.00023592,2]
[340962263,1730164238165,-195.211363,0.00023656,2]
[340962264,1730164238174,-195.211363,0.0002372,2]
[340962265,1730164238183,-195.211363,0.00023783,2]
[340962266,1730164238191,-195.211363,0.00023847,2]
[340962267,1730164238201,-300.0,0.00023865,2]
[340962268,1730164238209,-300.0,0.00023865,2]
[340962269,1730164238218,-195.211363,0.00023911,2]
[340962270,1730164238227,-195.211363,0.00023974,2]
[340962271,1730164238238,-279.65,0.00024,2]
[340962272,1730164238247,-195.211363,0.00024038,2]
[340962273,1730164238257,-195.211363,0.00024102,2]
[340962274,1730164238266,-195.211363,0.00024165,2]
[340962275,1730164238275,-195.211363,0.00024229,2]
[340962276,1730164238283,-195.211363,0.00024292,2]
[340962277,1730164238292,-195.211363,0.00024356,2]
[340962278,1730164238301,-195.211363,0.0002442,2]
[340962279,1730164238310,-528.0,0.00024499,2]
[340962280,1730164238319,-1150.0,0.00024499,2]
[340962281,1730164238329,-2396.0,0.00024499,2]
[340962282,1730164238339,-3000.0,0.000245,2]
[340962283,1730164238349,-3000.0,0.0002451,2]
[340962284,1730164238358,-3000.0,0.0002452,2]
[340962285,1730164238367,-3000.0,0.0002453,2]
[340962286,1730164238376,-3000.0,0.0002454,2]
[340962287,1730164238385,-3000.0,0.0002455,2]
[340962288,1730164238395,-1878.2187092,0.00024557,2]
[340962289,1730164238404,-447.38299027,0.00024557,2]
[340962290,1730164238414,-3000.0,0.0002456,2]
[340962291,1730164238426,-5904.747691,0.0002457,2]
[340962292,1730164238435,-2014.0,0.000246,2]
[340962293,1730164238445,-466.68955314,0.0002462,2]
[340962294,1730164238454,-170.44,0.00024637,3]
[340962295,1730164238463,-511.34,0.00024637,3]
[340962296,1730164238472,-210.9727283,0.00024646,2]
[340962297,1730164238483,-394.75864743,0.00024646,2]
[340962298,1730164238492,-216.83391562,0.00024646,2]
[340962299,1730164238504,-500.0,0.00024646,2]
[340962300,1730164238513,-500.0,0.00024646,2]
[340962301,1730164238522,-500.0,0.00024646,2]
[340962302,1730164238531,-500.0,0.00024646,2]
[340962303,1730164238541,-249.62825609,0.00024646,2]
[340962304,1730164238550,-618.42654408,0.00024646,2]
[340962305,1730164238559,-500.0,0.00024646,2]
[340962306,1730164238568,-625.73956988,0.00024646,2]
[340962307,1730164238577,-107474.685578,0.00024647,3]
[340962308,1730164238588,-66619.2842588,0.00024647,3]
[340962309,1730164238597,-500.0,0.00024657,4]
[340962310,1730164238606,-500.0,0.00024657,4]
[340962311,1730164238615,-500.0,0.00024657,4]
[340962312,1730164238624,-500.0,0.00024657,4]
[340962313,1730164238634,-500.0,0.00024657,4]
[340962314,1730164238644,-500.0,0.00024657,4]
[340962315,1730164238653,-500.0,0.00024657,4]
[340962316,1730164238663,-500.0,0.00024657,4]
[340962317,1730164238672,-500.0,0.00024657,4]
[340962318,1730164238681,-500.0,0.00024657,4]
[340962319,1730164238692,-151.0,0.00024657,7]
[340962320,1730164238703,-500.0,0.00024657,2]
[340962321,1730164238713,-500.0,0.00024657,4]
[340962322,1730164238722,-500.0,0.00024657,4]
[340962323,1730164238733,-500.0,0.00024657,4]
[340962324,1730164238747,-500.0,0.00024657,4]
[340962325,1730164238757,-500.0,0.00024657,4]
[340962326,1730164238766,-500.0,0.00024657,4]
[340962327,1730164238779,-346.30061975,0.00024657,4]
[340962328,1730164238790,-237.40039623,0.00024657,4]
[340962329,1730164238799,-500.0,0.00024657,4]
[340962330,1730164238809,-500.0,0.00024657,4]
[340962331,1730164238819,-500.0,0.00024657,4]
[340962332,1730164238828,-613.16396565,0.00024657,4]
[340962333,1730164238838,-500.0,0.00024657,4]
[340962334,1730164238848,-500.0,0.00024657,4]
[340962335,1730164238857,-500.0,0.00024657,4]
[340962336,1730164238867,-500.0,0.00024657,4]
[340962337,1730164238876,-500.0,0.00024657,4]
[340962338,1730164238885,-500.0,0.00024657,4]
[340962339,1730164238895,-238.52621435,0.00024657,4]
[340962340,1730164238905,-500.0,0.00024657,4]
[340962341,1730164238915,-500.0,0.00024657,4]
[340962342,1730164238925,-500.0,0.00024657,4]
[340962343,1730164238935,-500.0,0.00024657,4]
[340962344,1730164238945,-500.0,0.00024657,4]
[340962345,1730164238955,-500.0,0.00024657,4]
[340962346,1730164238964,-500.0,0.00024657,4]
[340962347,1730164238973,-500.0,0.00024657,4]
[340962348,1730164238984,-500.0,0.00024657,4]
[340962349,1730164238994,-500.0,0.00024657,4]
[340962350,1730164239003,-500.0,0.00024657,4]
[340962351,1730164239013,-500.0,0.00024657,4]
[340962352,1730164239022,-500.0,0.00024657,4]
[340962353,1730164239031,-500.0,0.00024657,4]
[340962354,1730164239162,-500.0,0.00024657,4]
[340962355,1730164239173,-500.0,0.00024657,4]
[340962356,1730164239182,-500.0,0.00024657,4]
[340962357,1730164239192,-500.0,0.00024657,4]
[340962358,1730164239202,-500.0,0.00024657,4]
[340962359,1730164239211,-500.0,0.00024657,4]
[340962360,1730164239221,-500.0,0.00024657,4]
[340962361,1730164239230,-500.0,0.00024657,4]
[340962362,1730164239242,-500.0,0.00024657,4]
[340962363,1730164239251,-500.0,0.00024657,4]
[340962364,1730164239260,-500.0,0.00024657,4]
[340962365,1730164239269,-500.0,0.00024657,4]
[340962366,1730164239279,-500.0,0.00024657,4]
[340962367,1730164239288,-500.0,0.00024657,4]
[340962368,1730164239299,-500.0,0.00024657,4]
[340962369,1730164239309,-500.0,0.00024657,4]
[340962370,1730164239318,-500.0,0.00024657,4]
[340962371,1730164239327,-639.97671426,0.00024657,2]
[340962372,1730164239336,-500.0,0.00024657,4]
[340962373,1730164239346,-500.0,0.00024657,4]
[340962374,1730164239356,-500.0,0.00024657,4]
[340962375,1730164239366,-500.0,0.00024657,4]
[340962376,1730164239375,-500.0,0.00024657,4]
[340962377,1730164239385,-500.0,0.00024657,4]
[340962378,1730164239394,-500.0,0.00024657,4]
[340962379,1730164239404,-500.0,0.00024657,4]
[340962380,1730164239413,-501.73677468,0.00024657,4]
[340962381,1730164239423,-500.0,0.00024657,4]
[340962382,1730164239432,-500.0,0.00024657,4]
[340962383,1730164239442,-500.0,0.00024657,4]
[340962384,1730164239451,-500.0,0.00024657,4]
[340962385,1730164239461,-500.0,0.00024657,4]
[340962386,1730164239471,-500.0,0.00024657,4]
[340962387,1730164239483,-500.0,0.00024657,4]
[340962388,1730164239493,-500.0,0.00024657,4]
[340962389,1730164239503,-500.0,0.00024657,4]
[340962390,1730164239512,-500.0,0.00024657,4]
[340962391,1730164239521,-500.0,0.00024657,4]
[340962392,1730164239531,-500.0,0.00024657,4]
[340962393,1730164239540,-500.0,0.00024657,4]
[340962394,1730164239550,-500.0,0.00024657,4]
[340962395,1730164239560,-500.0,0.00024657,4]
[340962396,1730164239571,-500.0,0.00024657,4]
[340962397,1730164239581,-500.0,0.00024657,4]
[340962398,1730164239591,-151.0,0.00024657,7]
[340962399,1730164239601,-151.0,0.00024657,7]
[340962400,1730164239611,-532.41030342,0.00024657,4]
[340962401,1730164239620,-500.0,0.00024657,4]
[340962402,1730164239629,-500.0,0.00024657,4]
[340962403,1730164239639,-500.0,0.00024657,4]
[340962404,1730164239649,-500.0,0.00024657,4]
[340962405,1730164239659,-500.0,0.00024657,4]
[340962406,1730164239669,-500.0,0.00024657,4]
[340962407,1730164239679,-526.74,0.00024657,4]
[340962408,1730164239691,-500.0,0.00024657,4]
[340962409,1730164239702,-500.0,0.00024657,4]
[340962410,1730164239711,-500.0,0.00024657,4]
[340962411,1730164239721,-500.0,0.00024657,4]
[340962412,1730164239732,-500.0,0.00024657,4]
[340962414,1730164239743,-500.0,0.00024657,4]
[340962416,1730164239752,-500.0,0.00024657,4]
[340962417,1730164239763,-500.0,0.00024657,4]
[340962419,1730164239772,-500.0,0.00024657,4]
[340962420,1730164239782,-500.0,0.00024657,4]
[340962421,1730164239792,-151.0,0.00024657,7]
[340962422,1730164239801,-151.0,0.00024657,7]
[340962423,1730164239810,-500.0,0.00024657,4]
[340962424,1730164239820,-500.0,0.00024657,4]
[340962425,1730164239830,-500.0,0.00024657,4]
[340962426,1730164239839,-500.0,0.00024657,4]
[340962427,1730164239848,-500.0,0.00024657,4]
[340962428,1730164239858,-500.0,0.00024657,4]
[340962429,1730164239867,-500.0,0.00024657,4]
[340962430,1730164239877,-500.0,0.00024657,4]
[340962431,1730164239886,-383.21283251,0.00024657,4]
[340962432,1730164239896,-151.0,0.00024657,7]
[340962433,1730164239906,-500.0,0.00024657,4]
[340962434,1730164239916,-500.0,0.00024657,4]
[340962435,1730164239925,-500.0,0.00024657,4]
[340962436,1730164239935,-500.0,0.00024657,4]
[340962437,1730164239945,-503.3015057,0.00024657,4]
[340962438,1730164239954,-151.0,0.00024657,7]
[340962439,1730164239964,-151.0,0.00024657,7]
[340962440,1730164239973,-500.0,0.00024657,4]
[340962442,1730164239983,-500.0,0.00024657,4]
[340962444,1730164239992,-585.75191908,0.00024657,4]
[340962445,1730164240003,-500.0,0.00024657,4]
[340962446,1730164240012,-500.0,0.00024657,4]
[340962447,1730164240022,-500.0,0.00024657,4]
[340962448,1730164240032,-500.0,0.00024657,4]
[340962450,1730164240041,-500.0,0.00024657,4]
[340962451,1730164240051,-500.0,0.00024657,4]
[340962452,1730164240060,-500.0,0.00024657,4]
[340962453,1730164240070,-151.0,0.00024657,7]
[340962454,1730164240080,-235.22104,0.00024657,7]
[340962455,1730164240090,-265.73639,0.00024657,7]
[340962456,1730164240099,-265.73639,0.00024657,7]
[340962457,1730164240108,-500.0,0.00024657,4]
[340962458,1730164240117,-265.73639,0.00024657,7]
[340962459,1730164240127,-265.73639,0.00024657,7]
[340962460,1730164240136,-500.0,0.00024657,4]
[340962461,1730164240145,-500.0,0.00024657,4]
[340962462,1730164240155,-500.0,0.00024657,4]
[340962463,1730164240164,-500.0,0.00024657,4]
[340962464,1730164240173,-500.0,0.00024657,4]
[340962465,1730164240183,-151.0,0.00024657,7]
[340962466,1730164240192,-151.0,0.00024657,7]
[340962467,1730164240201,-500.0,0.00024657,4]
[340962468,1730164240211,-500.0,0.00024657,4]
[340962469,1730164240220,-500.0,0.00024657,4]
[340962470,1730164240229,-1086.28,0.00024657,4]
[340962471,1730164240238,-500.0,0.00024657,4]
[340962472,1730164240248,-500.0,0.00024657,4]
[340962473,1730164240257,-500.0,0.00024657,4]
[340962474,1730164240267,-500.0,0.00024657,4]
[340962475,1730164240276,-346.1352442,0.00024657,4]
[340962476,1730164240285,-500.0,0.00024657,4]
[340962477,1730164240294,-500.0,0.00024657,4]
[340962478,1730164240303,-500.0,0.00024657,4]
[340962479,1730164240312,-500.0,0.00024657,4]
[340962480,1730164240321,-500.0,0.00024657,4]
[340962481,1730164240331,-500.0,0.00024657,4]
[340962482,1730164240340,-500.0,0.00024657,4]
[340962483,1730164240349,-500.0,0.00024657,4]
[340962484,1730164240358,-500.0,0.00024657,4]
[340962485,1730164240368,-500.0,0.00024657,4]
[340962486,1730164240377,-500.0,0.00024657,4]
[340962487,1730164240386,-500.0,0.00024657,4]
[340962488,1730164240394,-500.0,0.00024657,4]
[340962489,1730164240403,-500.0,0.00024657,4]
[340962490,1730164240412,-500.0,0.00024657,4]
[340962491,1730164240421,-500.0,0.00024657,4]
[340962492,1730164240430,-500.0,0.00024657,4]
[340962493,1730164240439,-151.0,0.00024657,7]
[340962494,1730164240448,-151.0,0.00024657,7]
[340962495,1730164240457,-500.0,0.00024657,4]
[340962496,1730164240466,-500.0,0.00024657,4]
[340962497,1730164240475,-500.0,0.00024657,4]
[340962498,1730164240485,-500.0,0.00024657,4]
[340962499,1730164240494,-500.0,0.00024657,4]
[340962500,1730164240503,-500.0,0.00024657,4]
[340962501,1730164240513,-225.739806,0.00024657,7]
[340962502,1730164240522,-225.739806,0.00024657,7]
[340962503,1730164240532,-500.0,0.00024657,4]
[340962504,1730164240542,-225.739806,0.00024657,7]
[340962505,1730164240551,-225.739806,0.00024657,7]
[340962506,1730164240560,-500.0,0.00024657,4]
[340962507,1730164240570,-500.0,0.00024657,4]
[340962508,1730164240578,-500.0,0.00024657,4]
[340962509,1730164240588,-500.0,0.00024657,4]
[340962510,1730164240597,-500.0,0.00024657,4]
[340962511,1730164240606,-500.0,0.00024657,4]
[340962512,1730164240615,-500.0,0.00024657,4]
[340962513,1730164240624,-500.0,0.00024657,4]
[340962514,1730164240633,-500.0,0.00024657,4]
[340962515,1730164240643,-500.0,0.00024657,4]
[340962516,1730164240653,-500.0,0.00024657,4]
[340962517,1730164240662,-500.0,0.00024657,4]
[340962518,1730164240671,-156.31777353,0.00024657,4]
[340962519,1730164240681,-151.0,0.00024657,7]
[340962520,1730164240691,-500.0,0.00024657,4]
[340962521,1730164240702,-500.0,0.00024657,4]
[340962522,1730164240712,-500.0,0.00024657,4]
[340962523,1730164240721,-500.0,0.00024657,4]
[340962524,1730164240730,-277.75685796,0.00024657,4]
[340962525,1730164240741,-500.0,0.00024657,4]
[340962526,1730164240750,-500.0,0.00024657,4]
[340962527,1730164240759,-500.0,0.00024657,4]
[340962528,1730164240769,-422.96428633,0.00024657,4]
[340962529,1730164240779,-500.0,0.00024657,4]
[340962530,1730164240788,-500.0,0.00024657,4]
[340962531,1730164240797,-500.0,0.00024657,4]
[340962532,1730164240807,-500.0,0.00024657,4]
[340962533,1730164240817,-500.0,0.00024657,4]
[340962534,1730164240826,-500.0,0.00024657,4]
[340962535,1730164240835,-500.0,0.00024657,4]
[340962536,1730164240845,-500.0,0.00024657,4]
[340962537,1730164240854,-500.0,0.00024657,4]
[340962538,1730164240863,-500.0,0.00024657,4]
[340962539,1730164240872,-500.0,0.00024657,4]
[340962540,1730164240881,-500.0,0.00024657,4]
[340962541,1730164240891,-500.0,0.00024657,4]
[340962542,1730164240902,-500.0,0.00024657,4]
[340962543,1730164240911,-500.0,0.00024657,4]
[340962544,1730164240920,-500.0,0.00024657,4]
[340962545,1730164240929,-500.0,0.00024657,4]
[340962546,1730164240939,-500.0,0.00024657,4]
[340962547,1730164240948,-500.0,0.00024657,4]
[340962548,1730164240958,-500.0,0.00024657,4]
[340962549,1730164240967,-500.0,0.00024657,4]
[340962550,1730164240976,-500.0,0.00024657,4]
[340962551,1730164240986,-500.0,0.00024657,4]
[340962552,1730164240995,-751.0,0.00024657,4]
[340962553,1730164241005,-205.77898,0.00024657,7]
[340962554,1730164241014,-500.0,0.00024657,4]
[340962555,1730164241023,-500.0,0.00024657,4]
[340962556,1730164241032,-500.0,0.00024657,4]
[340962557,1730164241041,-502.39784391,0.00024657,4]
[340962558,1730164241050,-500.0,0.00024657,4]
[340962559,1730164241059,-372.58975167,0.00024657,4]
[340962560,1730164241069,-500.0,0.00024657,4]
[340962561,1730164241078,-500.0,0.00024657,4]
[340962562,1730164241087,-591.91414,0.00024657,7]
[340962563,1730164241098,-500.0,0.00024657,4]
[340962564,1730164241108,-591.91414,0.00024657,7]
[340962565,1730164241117,-151.0,0.00024657,7]
[340962566,1730164241126,-500.0,0.00024657,4]
[340962567,1730164241135,-500.0,0.00024657,4]
[340962568,1730164241144,-500.0,0.00024657,4]
[340962569,1730164241154,-500.0,0.00024657,4]
[340962570,1730164241164,-500.0,0.00024657,4]
[340962571,1730164241173,-500.0,0.00024657,4]
[340962572,1730164241182,-500.0,0.00024657,4]
[340962573,1730164241191,-151.0,0.00024657,7]
[340962574,1730164241201,-151.0,0.00024657,7]
[340962575,1730164241209,-670.66,0.00024657,4]
[340962576,1730164241218,-151.0,0.00024657,7]
[340962577,1730164241227,-500.0,0.00024657,4]
[340962578,1730164241239,-151.0,0.00024657,7]
[340962579,1730164241249,-500.0,0.00024657,4]
[340962580,1730164241258,-500.0,0.00024657,4]
[340962581,1730164241268,-500.0,0.00024657,4]
[340962582,1730164241277,-500.0,0.00024657,4]
[340962583,1730164241286,-500.0,0.00024657,4]
[340962584,1730164241295,-500.0,0.00024657,4]
[340962585,1730164241304,-1321.59,0.00024657,4]
[340962586,1730164241314,-500.0,0.00024657,4]
[340962587,1730164241324,-151.0,0.00024657,7]
[340962588,1730164241333,-500.0,0.00024657,4]
[340962589,1730164241343,-587.71285147,0.00024657,4]
[340962590,1730164241353,-500.0,0.00024657,2]
[340962591,1730164241362,-500.0,0.00024657,4]
[340962592,1730164241371,-500.0,0.00024657,4]
[340962593,1730164241380,-500.43870308,0.00024657,2]
[340962594,1730164241390,-500.0,0.00024657,4]
[340962595,1730164241399,-500.0,0.00024657,4]
[340962596,1730164241408,-151.0,0.00024657,7]
[340962597,1730164241417,-151.0,0.00024657,7]
[340962598,1730164241426,-500.0,0.00024657,4]
[340962599,1730164241437,-500.0,0.00024657,4]
[340962600,1730164241447,-174.813786,0.00024657,7]
[340962601,1730164241456,-174.813786,0.00024657,7]
[340962602,1730164241465,-500.0,0.00024657,4]
[340962603,1730164241475,-500.0,0.00024657,4]
[340962604,1730164241485,-500.0,0.00024657,4]
[340962605,1730164241494,-174.813786,0.00024657,7]
[340962606,1730164241504,-174.813786,0.00024657,7]
[340962607,1730164241514,-594.58685564,0.00024657,4]
[340962608,1730164241523,-500.0,0.00024657,4]
[340962609,1730164241533,-151.0,0.00024657,7]
[340962610,1730164241542,-151.0,0.00024657,7]
[340962611,1730164241553,-527.64522513,0.00024657,4]
[340962612,1730164241562,-1678.34,0.00024657,4]
[340962613,1730164241572,-500.0,0.00024657,4]
[340962614,1730164241581,-500.0,0.00024657,4]
[340962615,1730164241590,-500.0,0.00024657,4]
[340962616,1730164241601,-500.0,0.00024657,4]
[340962617,1730164241610,-500.0,0.00024657,4]
[340962618,1730164241620,-500.0,0.00024657,4]
[340962619,1730164241632,-500.0,0.00024657,4]
[340962620,1730164241645,-500.0,0.00024657,4]
[340962621,1730164241654,-541.09,0.00024657,4]
[340962622,1730164241663,-500.0,0.00024657,4]
[340962623,1730164241766,-500.0,0.00024657,4]
[340962624,1730164241779,-500.0,0.00024657,4]
[340962625,1730164241789,-151.0,0.00024657,7]
[340962626,1730164241798,-151.613408,0.00024657,7]
[340962627,1730164241808,-500.0,0.00024657,4]
[340962628,1730164241817,-151.0,0.00024658,7]
[340962629,1730164241826,-151.0,0.00024658,7]
[340962630,1730164241836,-276.204209,0.00024658,7]
[340962631,1730164241845,-276.204209,0.00024658,7]
[340962632,1730164241855,-151.0,0.00024658,7]
[340962633,1730164241864,-500.0,0.00024658,2]
[340962634,1730164241873,-500.0,0.00024658,2]
[340962635,1730164241883,-500.0,0.00024658,2]
[340962636,1730164241892,-500.0,0.00024658,2]
[340962637,1730164241902,-500.0,0.00024658,2]
[340962638,1730164241912,-205.26295936,0.00024658,2]
[340962639,1730164241921,-500.0,0.00024658,2]
[340962640,1730164241931,-500.0,0.00024673,2]
[340962641,1730164241941,-623.08054102,0.00024673,2]
[340962642,1730164241950,-500.0,0.00024673,2]
[340962643,1730164241960,-500.0,0.00024673,2]
[340962644,1730164241970,-500.0,0.00024673,2]
[340962645,1730164241980,-500.0,0.00024673,2]
[340962646,1730164241990,-500.0,0.00024673,2]
[340962647,1730164241999,-500.0,0.00024673,2]
[340962648,1730164242009,-500.0,0.00024673,2]
[340962649,1730164242018,-500.0,0.00024673,2]
[340962650,1730164242028,-500.0,0.00024673,2]
[340962651,1730164242038,-150.25097901,0.00024673,2]
[340962652,1730164242047,-500.0,0.00024673,2]
[340962653,1730164242057,-500.0,0.00024673,2]
[340962654,1730164242066,-160.04242315,0.00024673,2]
[340962655,1730164242076,-707.961,0.000248,8]
[340962656,1730164242086,-1000.0,0.00024821,2]
[340962657,1730164242096,-151.0,0.00024911,7]
[340962658,1730164242106,-151.0,0.00024911,7]
[340962659,1730164242115,-151.0,0.00024911,7]
[340962660,1730164242125,-265.73639,0.00024911,7]
[340962661,1730164242134,-265.73639,0.00024911,7]
[340962662,1730164242144,-151.0,0.00024911,7]
[340962663,1730164242153,-225.739806,0.00024911,7]
[340962664,1730164242162,-225.739806,0.00024911,7]
[340962665,1730164242173,-151.0,0.00024911,7]
[340962666,1730164242182,-591.91414,0.00024911,7]
[340962667,1730164242193,-591.91414,0.00024911,7]
[340962668,1730164242202,-107474.685578,0.00024921,3]
[340962669,1730164242211,-22431.81738828,0.00024921,3]
[340962673,1730164242998,-500.0,0.00024657,4]
[340962674,1730164243008,-151.0,0.00024657,7]
[340962675,1730164243017,-48.57,0.00024657,4]
[340962676,1730164243030,-451.43,0.00024657,4]
[340962677,1730164243038,-6538.60491425,0.00024921,3]
[340962695,1730164270907,10000.0,0.00022001,60]
[340962696,1730164303807,202.90624569,0.00022,60]
[340962697,1730164367559,1227.33463191,0.0002,2]